fUST/lending_fUST_20250707
["ID","MTS","AMOUNT","RATE_DAILY","PERIOD"]
[370101995,1751883038326,-199.71980289,0.00018758,2]
[370101996,1751883038423,-260.28019711,0.00018758,2]
[370101997,1751883038435,-540.75,0.00018765,2]
[370101998,1751883038445,-460.0,0.00018766,2]
[370101999,1751883038455,-460.0,0.00019032,2]
[370102000,1751883038464,-460.0,0.0001904,2]
[370102001,1751883038474,-272.921661,0.00019178,2]
[370102002,1751883038483,-666.0,0.00019178,2]
[370102003,1751883038493,-460.0,0.00019314,2]
[370102004,1751883038503,-460.0,0.00019588,2]
[370102005,1751883038512,-215.21338352,0.00019705,2]
[370102006,1751883038522,-6067.04585223,0.00019705,2]
[370102007,1751883038534,-1130.77446522,0.00019705,2]
[370102008,1751883038545,-312.4999038,0.00019705,2]
[370102022,1751883040042,-460.0,0.00019306,2]
[370102023,1751883040051,-585.36510411,0.00019705,2]
[370102024,1751883040063,-2333.74260524,0.00019705,2]
[370102049,1751883160062,2000.0,0.00016,10]
[370102050,1751883176098,2000.0,0.00016,30]
[370102051,1751883217296,2000.0,0.00016,90]
[370102052,1751883270236,-300.0,0.00016564,2]
[370102053,1751883270274,-185.21015525,0.00016565,2]
[370102054,1751883270309,-223.67951651,0.00016565,2]
[370102055,1751883270343,-500.0,0.00016565,2]
[370102056,1751883270377,-500.0,0.00016565,2]
[370102057,1751883270411,-450.03084832,0.00016565,2]
[370102058,1751883270444,-176.61383669,0.00016565,2]
[370102059,1751883270477,-332.52881457,0.00016565,2]
[370102060,1751883270512,-543.27802304,0.00016566,2]
[370102061,1751883270547,-460.0,0.00016566,2]
[370102062,1751883270583,-460.0,0.00016566,2]
[370102063,1751883270615,-460.0,0.00016566,2]
[370102064,1751883270649,-460.0,0.00016566,2]
[370102065,1751883270686,-460.0,0.00016566,2]
[370102066,1751883270720,-460.0,0.00016566,2]
[370102067,1751883270755,-460.0,0.00016566,2]
[370102068,1751883270788,-460.0,0.00016566,2]
[370102069,1751883270822,-460.0,0.00016566,2]
[370102070,1751883270856,-460.0,0.00016566,2]
[370102071,1751883270888,-460.0,0.00016566,2]
[370102072,1751883270921,-460.0,0.00016566,2]
[370102073,1751883270952,-37625.0097006,0.00016566,2]
[370102074,1751883270985,-461.53944402,0.0001657,2]
[370102075,1751883271018,-460.0,0.00016571,2]
[370102076,1751883271049,-460.0,0.00016571,2]
[370102077,1751883274988,460.0,0.00016566,2]
[370102078,1751883278946,193.4225533,0.00016565,2]
[370102079,1751883297798,460.0,0.00016566,2]
[370102080,1751883304135,460.0,0.00016566,2]
[370102081,1751883306105,460.0,0.00016566,2]
[370102082,1751883346862,164.904123,0.00013699,2]
[370102083,1751883358658,5000.0,0.000166,2]
[370102084,1751883373364,460.0,0.00016565,2]
[370102085,1751883375233,456.0,0.00016565,2]
[370102086,1751883375484,2043.6582553,0.000166,2]
[370102087,1751883431549,1000.0,0.000165,2]
[370102088,1751883480815,1000.0,0.00016,10]
[370102089,1751883488566,-406.89063802,0.00016565,2]
[370102090,1751883490510,-53.10936198,0.00016565,2]
[370102091,1751883490542,-228.68001579,0.00016565,2]
[370102092,1751883493033,-173.45062467,0.00016565,2]
[370102093,1751883495248,1000.0,0.00016,30]
[370102094,1751883495607,-57.86935954,0.00016565,2]
[370102095,1751883495629,-223.92001823,0.00016566,2]
[370102096,1751883498919,-236.07998177,0.00016566,2]
[370102097,1751883498942,-199.07572277,0.00016566,2]
[370102098,1751883502711,-260.92427723,0.00016566,2]
[370102099,1751883502735,-11.54892677,0.00016566,2]
[370102100,1751883506048,-379.95638388,0.00016566,2]
[370102101,1751883519321,-163.25735844,0.00016565,2]
[370102102,1751883521978,-246.90572578,0.00016565,2]
[370102103,1751883525216,-49.83691578,0.00016565,2]
[370102104,1751883525237,-119.40414633,0.00016565,2]
[370102105,1751883528893,-283.76825268,0.00016565,2]
[370102106,1751883531931,-56.82760099,0.00016565,2]
[370102107,1751883531954,-68.49468935,0.00016566,2]
[370102108,1751883531975,-175.90298621,0.00016566,2]
[370102109,1751883543189,664.64,0.00016,90]
[370102110,1751883544373,-414.97242633,0.00016565,2]
[370102111,1751883548930,-45.02757367,0.00016565,2]
[370102112,1751883548952,-133.18304856,0.00016566,2]
[370102113,1751883550777,-150.91396523,0.00016566,2]
[370102114,1751883550800,-5.66792656,0.00016566,2]
[370102115,1751883553791,-178.21062223,0.00016566,2]
[370102116,1751883556693,-178.21062223,0.00016566,2]
[370102117,1751883559333,-97.91082898,0.00016566,2]
[370102118,1751883564772,370.14,0.00016565,2]
[370102119,1751883566307,5000.0,0.00016565,2]
[370102120,1751883583422,460.0,0.00016565,2]
[370102121,1751883583802,5000.0,0.00016565,2]
[370102122,1751883587714,460.0,0.00016565,2]
[370102123,1751883605500,5000.0,0.00016565,2]
[370102124,1751883611251,-285.9550116,0.00016566,2]
[370102125,1751883622066,460.0,0.00016565,2]
[370102126,1751883622555,2982.29803245,0.00016565,2]
[370102127,1751883624276,-174.0449884,0.00016566,2]
[370102128,1751883628840,460.0,0.00016565,2]
[370102129,1751883644589,-521.72,0.00016566,2]
[370102130,1751883644848,256.54507207,0.00016565,2]
[370102131,1751883647478,379.95638388,0.00016566,2]
[370102132,1751883648371,460.0,0.00016565,2]
[370102133,1751883654890,281.78937777,0.00016565,2]
[370102134,1751883660034,460.0,0.00016565,2]
[370102137,1751883750533,358.40864462,0.00016566,2]
[370102138,1751883751692,286.7269157,0.00016566,2]
[370102139,1751883752612,229.38153256,0.00016566,2]
[370102140,1751883753450,183.50522604,0.00016566,2]
[370102141,1751883754405,151.0,0.00016566,2]
[370102142,1751883780951,460.0,0.00016566,2]
[370102143,1751883793087,5000.0,0.000168,2]
[370102144,1751883793288,151.0,0.000168,2]
[370102145,1751883824472,5000.0,0.000168,2]
[370102146,1751883834256,166.0,0.000273,120]
[370102147,1751883834506,151.0,0.000168,2]
[370102148,1751883835481,281.02090418,0.000168,2]
[370102149,1751883837757,166.0,0.000273,120]
[370102151,1751883851075,167.0,0.000273,120]
[370102152,1751883870733,167.70603045,0.000273,120]
[370102153,1751883888223,5000.0,0.000176,6]
[370102154,1751883905544,5000.0,0.000176,6]
[370102155,1751883932141,-231.7842568,0.0001684,2]
[370102156,1751883939101,5000.0,0.000168,2]
[370102157,1751883951078,-228.2157432,0.0001684,2]
[370102158,1751883951100,-460.0,0.0001684,2]
[370102159,1751883951121,-460.0,0.00017114,2]
[370102160,1751883951142,-253.76,0.00017114,2]
[370102161,1751883951164,-9.65218683,0.00017395,2]
[370102162,1751883992862,450.34781317,0.00016565,2]
[370102163,1751884008098,-153.34828543,0.00017221,2]
[370102164,1751884040882,-2353.81458612,0.00017221,2]
[370102165,1751884040907,-158.333429,0.00018698,2]
[370102166,1751884040927,-300.0,0.00018898,2]
[370102167,1751884040948,-390.23922035,0.00018899,2]
[370102168,1751884040972,-553.31998078,0.00018899,2]
[370102169,1751884040991,-204.39537374,0.00018899,2]
[370102170,1751884041016,-500.0,0.00018899,2]
[370102171,1751884041038,-477.57311107,0.00018899,2]
[370102172,1751884041061,-500.0,0.00018899,2]
[370102173,1751884041088,-500.0,0.00018899,2]
[370102174,1751884041112,-500.0,0.00018899,2]
[370102175,1751884041134,-500.0,0.00018899,2]
[370102176,1751884041159,-500.0,0.00018899,2]
[370102177,1751884041183,-500.0,0.00018899,2]
[370102178,1751884041207,-250.0,0.00018899,2]
[370102179,1751884041230,-500.0,0.00018899,2]
[370102180,1751884041254,-500.0,0.00018899,2]
[370102181,1751884041462,-500.0,0.00018899,2]
[370102182,1751884041484,-650.56381256,0.00018899,2]
[370102183,1751884041507,-500.0,0.00018899,2]
[370102184,1751884041531,-500.0,0.00018899,2]
[370102185,1751884041555,-500.0,0.00018899,2]
[370102186,1751884041578,-500.0,0.00018899,2]
[370102187,1751884041603,-500.0,0.00018899,2]
[370102188,1751884041627,-500.0,0.00018899,2]
[370102189,1751884041651,-196.09045723,0.00018899,2]
[370102190,1751884041673,-2815.75513614,0.000189,2]
[370102191,1751884041697,-218.337328,0.00019178,2]
[370102192,1751884041721,-160.0,0.00019662,2]
[370102193,1751884041746,-160.0,0.00019662,2]
[370102194,1751884041769,-837.79946008,0.00019662,2]
[370102195,1751884041791,-848.27993403,0.00019662,2]
[370102196,1751884041814,-160.0,0.00019662,2]
[370102197,1751884041836,-160.0,0.00019662,2]
[370102198,1751884041859,-214.06929976,0.00019662,2]
[370102199,1751884041882,-230.48668418,0.00019662,2]
[370102200,1751884041908,-11111.84064542,0.00019662,2]
[370102201,1751884041933,-1200.0,0.00019703,2]
[370102202,1751884041957,-460.0,0.00019704,2]
[370102203,1751884041984,-479.79,0.00019704,2]
[370102204,1751884042007,-460.0,0.00019704,2]
[370102205,1751884042029,-460.0,0.00019704,2]
[370102206,1751884042052,-460.0,0.00019704,2]
[370102207,1751884042077,-460.0,0.00019704,2]
[370102208,1751884042100,-460.0,0.00019704,2]
[370102209,1751884042123,-460.0,0.00019704,2]
[370102210,1751884042144,-460.0,0.00019704,2]
[370102211,1751884042167,-405.70206124,0.00019704,2]
[370102212,1751884042190,-460.0,0.00019704,2]
[370102213,1751884042213,-460.0,0.00019704,2]
[370102214,1751884042241,-460.0,0.00019704,2]
[370102215,1751884042264,-281.78937777,0.00019704,2]
[370102216,1751884042284,-215.21338352,0.00019705,2]
[370102217,1751884042307,-230.14857212,0.00019705,2]
[370102220,1751884128748,6905.92996278,0.00015,2]
[370102226,1751884130938,16782.66782898,0.0001,2]
[370102237,1751884208163,5202.42192164,0.00015816,2]
[370102281,1751884232071,-401.3362467,0.0001871,2]
[370102287,1751884232125,-500.59501,0.0001871,2]
[370102290,1751884232137,-1590.90587175,0.0001871,2]
[370102292,1751884232147,-300.0,0.00019563,2]
[370102294,1751884232156,-9148.50049079,0.00019564,2]
[370102296,1751884232165,-215.21338352,0.00019665,2]
[370102298,1751884232174,-230.48668418,0.00019665,2]
[370102300,1751884232184,-12584.46609586,0.00019665,2]
[370102302,1751884232194,-160.0,0.00019665,2]
[370102304,1751884232203,-160.0,0.00019665,2]
[370102306,1751884232212,-837.79946008,0.00019665,2]
[370102308,1751884232221,-500.0,0.00019703,2]
[370102310,1751884232230,-394.60904573,0.00019703,2]
[370102312,1751884232239,-500.0,0.00019703,2]
[370102314,1751884232248,-500.0,0.00019703,2]
[370102316,1751884232257,-500.0,0.00019703,2]
[370102318,1751884232267,-500.0,0.00019703,2]
[370102320,1751884232277,-500.0,0.00019703,2]
[370102322,1751884232287,-500.0,0.00019703,2]
[370102324,1751884232296,-500.0,0.00019703,2]
[370102326,1751884232305,-500.0,0.00019703,2]
[370102328,1751884232314,-500.0,0.00019703,2]
[370102330,1751884232323,-500.0,0.00019703,2]
[370102333,1751884232333,-500.0,0.00019703,2]
[370102336,1751884232342,-500.0,0.00019703,2]
[370102339,1751884232351,-379.3001814,0.00019703,2]
[370102341,1751884232360,-500.0,0.00019703,2]
[370102343,1751884232370,-500.0,0.00019703,2]
[370102345,1751884232379,-500.0,0.00019703,2]
[370102347,1751884232388,-177.19866959,0.00019703,2]
[370102349,1751884232397,-499.99999999,0.00019703,2]
[370102351,1751884232406,-255.26,0.00019704,2]
[370102353,1751884232416,-339.79520022,0.00019704,2]
[370102355,1751884232425,-156.371078,0.00019704,2]
[370102357,1751884232434,-460.0,0.00019704,2]
[370102358,1751884232443,-460.0,0.00019704,2]
[370102361,1751884232452,-159.29,0.00019704,2]
[370102363,1751884232462,-460.0,0.00019704,2]
[370102365,1751884232471,-460.0,0.00019704,2]
[370102366,1751884232481,-460.0,0.00019704,2]
[370102368,1751884232490,-460.0,0.00019704,2]
[370102370,1751884232500,-460.0,0.00019704,2]
[370102372,1751884232509,-460.0,0.00019704,2]
[370102375,1751884232519,-460.0,0.00019704,2]
[370102378,1751884232538,-460.0,0.00019704,2]
[370102380,1751884232549,-460.0,0.00019704,2]
[370102382,1751884232558,-460.0,0.00019704,2]
[370102384,1751884232570,-440.46463524,0.00019704,2]
[370102386,1751884232579,-460.0,0.00019704,2]
[370102388,1751884232589,-460.0,0.00019704,2]
[370102390,1751884232599,-460.0,0.00019704,2]
[370102392,1751884232609,-460.0,0.00019704,2]
[370102394,1751884232618,-500.0,0.00019705,2]
[370102396,1751884232629,-848.27993403,0.00019705,2]
[370102398,1751884232638,-160.0,0.00019705,2]
[370102400,1751884232648,-214.06929976,0.00019705,2]
[370102402,1751884232657,-205.49733553,0.000199,2]
[370102404,1751884232667,-227.5,0.00019978,2]
[370102406,1751884232677,-460.0,0.00019978,2]
[370102408,1751884232687,-169.92,0.00019978,2]
[370102411,1751884232697,-460.0,0.00019978,2]
[370102413,1751884232706,-460.0,0.00019978,2]
[370102414,1751884232715,-460.0,0.00019978,2]
[370102417,1751884232725,-577.85,0.00019978,2]
[370102419,1751884232735,-1001.0,0.0002,30]
[370102421,1751884232745,-255.0,0.00020208,2]
[370102423,1751884232754,-236.18940654,0.00020208,2]
[370102425,1751884232764,-460.0,0.00020252,2]
[370102427,1751884232774,-460.0,0.00020252,2]
[370102429,1751884232784,-460.0,0.00020252,2]
[370102431,1751884232793,-210.94725637,0.00020426,2]
[370102433,1751884232804,-460.0,0.00020526,2]
[370102435,1751884232814,-315.28642972,0.00020526,2]
[370102437,1751884232823,-561.15,0.000208,2]
[370102439,1751884232833,-156.53234646,0.000209,2]
[370102441,1751884232842,-150.0,0.00021,2]
[370102443,1751884232851,-1409.76236617,0.00021,13]
[370102445,1751884232861,-438.032,0.00021,2]
[370102447,1751884232870,-420.0,0.00021311,2]
[370102449,1751884232880,-156.53234641,0.00021492,2]
[370102451,1751884232889,-544.25745257,0.00021498,2]
[370102453,1751884232899,-500.0,0.00021667,2]
[370102455,1751884232908,-244.64064037,0.00021917,2]
[370102457,1751884232918,-460.0,0.00021917,2]
[370102459,1751884232929,-460.0,0.00021917,2]
[370102461,1751884232941,-460.0,0.00021917,2]
[370102463,1751884232951,-178.21062223,0.00021917,2]
[370102465,1751884232960,-151.67620471,0.00021918,2]
[370102467,1751884232971,-151.0,0.00021918,2]
[370102469,1751884232981,-151.0,0.00021918,2]
[370102471,1751884232990,-500.0,0.00021918,2]
[370102473,1751884233000,-500.0,0.00021918,2]
[370102475,1751884233011,-500.0,0.00021918,2]
[370102477,1751884233021,-500.0,0.00021918,2]
[370102479,1751884233031,-500.0,0.00021918,2]
[370102481,1751884233041,-500.0,0.00021918,2]
[370102483,1751884233051,-354.55671318,0.00021918,2]
[370102485,1751884233060,-500.0,0.00021918,2]
[370102486,1751884233070,-20.7040108,0.00021918,2]
[370102487,1751884233084,-479.2959892,0.00021918,2]
[370102488,1751884233095,-500.0,0.00021918,2]
[370102489,1751884233104,-151.0,0.00021945,2]
[370102490,1751884233115,-210.94725635,0.00021963,2]
[370102491,1751884233124,-198.0,0.00021973,2]
[370102492,1751884233134,-170.0,0.00022,2]
[370102493,1751884233143,-156.53234641,0.00022085,2]
[370102494,1751884233153,-460.0,0.00022191,2]
[370102495,1751884233163,-460.0,0.00022191,2]
[370102496,1751884233173,-460.0,0.00022191,2]
[370102497,1751884233183,-1905.64,0.00022406,4]
[370102498,1751884233193,-242.49154554,0.00022465,2]
[370102499,1751884233207,-217.50845446,0.00022465,2]
[370102500,1751884233217,-262.49154554,0.00022465,2]
[370102637,1751884234620,460.0,0.00016565,2]
[370102979,1751884238074,-460.0,0.00016839,2]
[370102981,1751884238084,-460.0,0.00017113,2]
[370102983,1751884238093,-435.02,0.00017387,2]
[370102985,1751884238102,-460.0,0.00019704,2]
[370102986,1751884238111,-160.0,0.00019705,2]
[370102988,1751884238121,-199.65569052,0.00022465,2]
[370102990,1751884238130,-372.53079851,0.00022465,2]
[370102993,1751884238142,-87.46920149,0.00022465,2]
[370102995,1751884238151,-485.34207454,0.00022506,7]
[370102997,1751884238166,-1420.29792546,0.00022506,7]
[370102999,1751884238175,-218.337328,0.00022603,2]
[370103001,1751884238185,-1905.64,0.00022606,6]
[370103003,1751884238194,-156.53234641,0.00022677,2]
[370103005,1751884238203,-1905.64,0.00022706,7]
[370103007,1751884238213,-1905.64,0.00022806,6]
[370103009,1751884238222,-151.0,0.00022906,6]
[370103011,1751884238233,-200.31382204,0.00022906,6]
[370103013,1751884238243,-151.0,0.00022906,6]
[370103015,1751884238253,-151.0,0.00022906,6]
[370103017,1751884238262,-151.0,0.00022906,6]
[370103019,1751884238272,-151.0,0.00022906,6]
[370103021,1751884238282,-151.53734073,0.00022906,6]
[370103023,1751884238291,-151.0,0.00022906,6]
[370103025,1751884238301,-1905.64,0.00022906,6]
[370103027,1751884238310,-151.0,0.00022933,6]
[370103029,1751884238320,-228.0,0.0002294,2]
[370103031,1751884238329,-198.0,0.00022961,6]
[370103033,1751884238338,-160.0,0.00023,2]
[370103035,1751884238348,-1905.64,0.00023006,7]
[370103037,1751884238357,-170.0,0.00023014,7]
[370103039,1751884238366,-576.0368563,0.00023019,2]
[370103041,1751884238376,-1905.64,0.00023106,3]
[370103043,1751884238385,-1905.64,0.00023206,6]
[370103045,1751884238394,-156.53234641,0.00023269,2]
[370103046,1751884238403,-1905.64,0.00023306,7]
[370103048,1751884238412,-1905.64,0.00023406,4]
[370103050,1751884238422,-210.94725635,0.000235,2]
[370103052,1751884238431,-1905.64,0.00023506,4]
[370103055,1751884238441,-4036.07,0.0002356,10]
[370103057,1751884238450,-5811.94,0.0002357,10]
[370103059,1751884238460,-4843.29,0.0002357,10]
[370103060,1751884238469,-479.97,0.00023571,3]
[370103063,1751884238479,-239.99,0.00023571,3]
[370103064,1751884238489,-719.97,0.00023571,3]
[370103066,1751884238499,-329.76,0.00023571,3]
[370103068,1751884238508,-164.88,0.00023571,3]
[370103070,1751884238517,-494.69,0.00023571,3]
[370103072,1751884238528,-3363.39,0.00023571,10]
[370103074,1751884238538,-228.0,0.00023573,2]
[370103076,1751884238548,-524.98484073,0.0002358,10]
[370103078,1751884238558,-12584.46609586,0.0002358,10]
[370103080,1751884238567,-848.27993403,0.0002358,10]
[370103082,1751884238576,-149719.04412943,0.00023581,2]
[370103084,1751884238585,-230.48668418,0.000236,3]
[370103086,1751884238594,-160.0,0.000236,3]
[370103088,1751884238604,-160.0,0.000236,3]
[370103090,1751884238613,-215.21338352,0.000236,3]
[370103092,1751884238622,-160.0,0.000236,3]
[370103094,1751884238632,-160.0,0.000236,3]
[370103096,1751884238641,-160.0,0.000236,3]
[370103098,1751884238651,-12584.46609586,0.000236,3]
[370103101,1751884238661,-837.79946008,0.000236,3]
[370103102,1751884238670,-848.27993403,0.000236,3]
[370103104,1751884238679,-1305.06,0.000236,7]
[370103106,1751884238688,-214.06929976,0.000236,3]
[370103108,1751884238698,-1905.64,0.00023606,3]
[370103110,1751884238708,-168.0,0.00023631,2]
[370103112,1751884238717,-168.0,0.00023642,2]
[370103114,1751884238727,-500.0,0.00023645,2]
[370103116,1751884238736,-500.0,0.00023645,2]
[370103118,1751884238746,-500.0,0.00023645,2]
[370103120,1751884238756,-500.0,0.00023645,2]
[370103122,1751884238765,-500.0,0.00023645,2]
[370103124,1751884238775,-500.0,0.00023645,2]
[370103126,1751884238784,-500.0,0.00023645,2]
[370103128,1751884238794,-500.0,0.00023645,2]
[370103130,1751884238803,-338.10763806,0.00023645,2]
[370103132,1751884238813,-500.46494259,0.00023645,2]
[370103134,1751884238823,-600.0,0.00023645,2]
[370103136,1751884238832,-500.0,0.00023645,2]
[370103138,1751884238842,-207.4,0.00023687,2]
[370103140,1751884238852,-500.0,0.00023687,2]
[370103143,1751884238862,-500.0,0.00023687,2]
[370103145,1751884238872,-5000.0,0.00023687,2]
[370103147,1751884238882,-151.0,0.00023687,2]
[370103149,1751884238892,-500.0,0.00023687,2]
[370103151,1751884238902,-1500.0,0.00023687,2]
[370103153,1751884238911,-500.0,0.00023687,2]
[370103155,1751884238921,-1500.0,0.00023687,2]
[370103157,1751884238933,-500.0,0.00023687,2]
[370103158,1751884238943,-1500.0,0.00023687,2]
[370103161,1751884238953,-500.0,0.00023687,2]
[370103163,1751884238963,-1500.0,0.00023687,2]
[370103164,1751884238973,-500.0,0.00023687,2]
[370103166,1751884238982,-1500.0,0.00023687,2]
[370103168,1751884238992,-500.0,0.00023687,2]
[370103170,1751884239002,-1500.0,0.00023687,2]
[370103172,1751884239012,-500.0,0.00023687,2]
[370103174,1751884239021,-1172.00274755,0.00023687,2]
[370103176,1751884239031,-500.0,0.00023687,2]
[370103178,1751884239041,-500.0,0.00023687,2]
[370103180,1751884239051,-151.0,0.00023687,2]
[370103182,1751884239061,-151.0,0.00023687,2]
[370103184,1751884239070,-500.0,0.00023687,2]
[370103186,1751884239080,-151.0,0.00023687,2]
[370103188,1751884239089,-151.0,0.00023687,2]
[370103190,1751884239098,-151.0,0.00023687,2]
[370103192,1751884239108,-151.0,0.00023687,2]
[370103194,1751884239118,-151.0,0.00023687,2]
[370103196,1751884239127,-151.0,0.00023687,2]
[370103199,1751884239137,-196.51428338,0.00023687,2]
[370103201,1751884239147,-151.0,0.00023687,2]
[370103203,1751884239156,-151.0,0.00023687,2]
[370103204,1751884239165,-151.0,0.00023687,2]
[370103207,1751884239175,-151.0,0.00023687,2]
[370103209,1751884239184,-151.0,0.00023687,2]
[370103211,1751884239194,-151.0,0.00023687,2]
[370103213,1751884239208,-151.0,0.00023687,2]
[370103215,1751884239217,-151.0,0.00023687,2]
[370103217,1751884239227,-151.0,0.00023687,2]
[370103219,1751884239236,-151.0,0.00023687,2]
[370103221,1751884239246,-151.0,0.00023687,2]
[370103223,1751884239255,-151.0,0.00023687,2]
[370103225,1751884239265,-151.0,0.00023687,2]
[370103227,1751884239274,-151.0,0.00023687,2]
[370103229,1751884239284,-1905.64,0.00023706,3]
[370103231,1751884239293,-174.845259,0.00023749,10]
[370103233,1751884239303,-1971.0,0.00023758,2]
[370103235,1751884239312,-168.0,0.00023763,2]
[370103237,1751884239322,-169.52543058,0.00023781,2]
[370103239,1751884239331,-154.99941313,0.00023781,2]
[370103241,1751884239341,-1905.64,0.00023806,6]
[370103243,1751884239350,-156.53234641,0.00023861,2]
[370103245,1751884239360,-366.6942869,0.00023885,2]
[370103247,1751884239370,-364.6480913,0.00023885,2]
[370103268,1751884239562,-874.7361384,0.00023894,2]
[370103270,1751884239572,-12669.49864974,0.000239,2]
[370103272,1751884239582,-40091.95556765,0.000239,2]
[370103274,1751884239591,-2815.75513614,0.000239,2]
[370103276,1751884239601,-1905.64,0.00023906,2]
[370103279,1751884239611,-20422.64000133,0.00023921,2]
[370103280,1751884239620,-164.904123,0.00023973,2]
[370103282,1751884239629,-230.48668418,0.00024,10]
[370103285,1751884239639,-215.21338352,0.00024,10]
[370103286,1751884239649,-160.0,0.00024,10]
[370103289,1751884239658,-160.0,0.00024,10]
[370103291,1751884239667,-160.0,0.00024,10]
[370103293,1751884239677,-837.79946008,0.00024,10]
[370103294,1751884239686,-1905.64,0.00024006,2]
[370103296,1751884239696,-646.0,0.00024021,2]
[370103298,1751884239705,-2153.0,0.00024021,2]
[370103300,1751884239715,-429.128,0.00024021,2]
[370103303,1751884239724,-967.0,0.00024021,2]
[370103305,1751884239734,-168.0,0.00024027,2]
[370103307,1751884239744,-169.52543058,0.00024082,2]
[370103309,1751884239754,-154.99941313,0.00024082,2]
[370103310,1751884239765,-1905.64,0.00024106,2]
[370103312,1751884239774,-170.0,0.00024164,7]
[370103314,1751884239784,-1000.0,0.00024193,2]
[370103316,1751884239793,-550.15772205,0.00024193,2]
[370103319,1751884239804,-1000.0,0.00024193,2]
[370103320,1751884239813,-1000.0,0.00024193,2]
[370103322,1751884239823,-1000.0,0.00024193,2]
[370103324,1751884239832,-1000.0,0.00024193,2]
[370103326,1751884239842,-1000.0,0.00024193,2]
[370103328,1751884239852,-1200.0,0.00024193,2]
[370103330,1751884239861,-1000.0,0.00024193,2]
[370103332,1751884239871,-1905.64,0.00024206,7]
[370103334,1751884239881,-273.9546003,0.00024298,9]
[370103336,1751884239890,-1905.64,0.00024306,2]
[370103338,1751884239900,-3967.07919496,0.0002439,2]
[370103340,1751884239909,-1656.383922,0.00024401,4]
[370103342,1751884239919,-1905.64,0.00024406,5]
[370103344,1751884239930,-169.52543058,0.00024411,2]
[370103347,1751884239941,-154.99941313,0.00024411,2]
[370103348,1751884239951,-153.4805678,0.00024435,2]
[370103350,1751884239960,-156.53234641,0.00024454,2]
[370103352,1751884239971,-901.52706285,0.00024483,2]
[370103354,1751884239981,-20422.64000133,0.00024484,2]
[370103355,1751884239990,-500.0,0.00024499,9]
[370103357,1751884239999,-13977.0,0.000245,10]
[370103359,1751884240010,-9781.80335578,0.000245,2]
[370103361,1751884240019,-200.0,0.000245,2]
[370103363,1751884240028,-160.0,0.000245,10]
[370103365,1751884240037,-1905.64,0.00024506,4]
[370103366,1751884240045,-150.0,0.00024541,2]
[370103368,1751884240054,-150.0,0.00024541,2]
[370103370,1751884240064,-512.7884035,0.00024568,2]
[370103372,1751884240073,-1905.64,0.00024606,2]
[370103373,1751884240083,-283.0,0.00024627,2]
[370103375,1751884240092,-76028.12985717,0.0002465,2]
[370103377,1751884240102,-501.10567785,0.0002465,2]
[370103379,1751884240111,-150.0,0.00024658,2]
[370103381,1751884240120,-151.0,0.00024658,2]
[370103382,1751884240130,-330.79775764,0.00024658,2]
[370103384,1751884240139,-500.0,0.00024658,2]
[370103386,1751884240149,-500.0,0.00024658,2]
[370103388,1751884240160,-477.17981872,0.00024658,2]
[370103390,1751884240169,-500.0,0.00024658,2]
[370103392,1751884240178,-500.0,0.00024658,2]